{"text_format":"1","workbook":"xlsx","n_sheets":1,"sheets":["Tabelle1"],"not_rendered":{"charts":0,"images":0,"macros":0,"external_links":0,"defined_names":0,"comments":0,"pivot_tables":0},"unopened":[],"bounds":{"document_bytes":16777216,"sheet_cells":100000,"rows_first":2000,"rows_last":500,"rows_between":2000,"halvings":0,"cell_chars":16384,"cell_head_chars":4096},"cells_cut":0,"cells_raw":0,"read":"whole","date_system":"1900"}

{"sheet":"Tabelle1","index":0,"n_rows":44,"n_cols":10,"rows_kept":44,"cut":false,"hidden":false,"merged":[[34,4,34,5],[35,4,35,5],[36,4,36,5],[3,2,3,10],[4,2,4,10],[23,1,23,5],[24,1,24,5],[25,1,25,5],[26,1,26,5]]}
["Gegliederter Kostenplan entsprechend den im Merkblatt unter 4 a) bis 4 c) aufgeführten Ausgabengruppen für den "]
["Förderschwerpunkt \"Energetisch optimierte Modernisierung mit Passivhauskomponenten\""]
[]
["Antragsteller: "]
["Objektadresse:"]
[]
["A) ","Investive Mehrausgaben für Bauliche Maßnahmen "]
[null,"Nr. 4 a) des Merkblatts zur Förderung der energetisch optimierten Modernisierung"]
[null,null,"Bauteilfläche",null,"Kosten-\npauschale ",null,"Zuwendungsfähige\nAusgaben","max. Förder-\nsatz",null,"mögliche Förderung"]
[null,"Maßnahme ","[m²]",null,"[EUR/m²]",null,"[EUR]",null,null,"[EUR]"]
[null,"Außenwand ",null,"x",35,"=",{"$f":"ROUND(C11,0)*E11","v":0},"x 50%","=",{"$f":"G11*0.5","v":0}]
[null,"Dach",null,"x",30,"=",{"$f":"ROUND(C12,0)*E12","v":0},"x 50%","=",{"$f":"G12*0.5","v":0}]
[null,"Oberste Geschossdecke",null,"x",12,"=",0,"x 50%","=",0]
[null,"Kellerdecke / Bodenplatte / Kellerinnenwand",null,"x",12,"=",0,"x 50%","=",0]
[null,"Fenster und Türen gegen Außenluft",null,"x",100,"=",0,"x 50%","=",0]
[]
[null,"Summe der investiven Mehrausgaben für Bauliche Maßnahmen",null,null,null,"A)",{"$f":"SUM(G11:G15)","v":0},"x 50%","=",{"$f":"SUM(J11:J15)","v":0}]
[]
["B)","Investive Mehrausgaben für die Technische Gebäudeausrüstung zur Erfüllung der Anforderungen an den Jahres-Heizwärmebedarf"]
[null,"(z.B. Lüftungsanlage mit Wärmerückgewinnung, Erdwärmeübertrager,…)"]
[null,"Nr. 4 b) des Merkblatts zur Förderung der energetisch optimierten Modernisierung"]
[null,null,null,null,null,null,"Tatsächliche Höhe der investiven Ausgaben","max. Förder-\nsatz",null,"mögliche Förderung"]
[null,"Maßnahme",null,null,null,null,"[EUR]",null,null,"[EUR]"]
[null,null,null,null,null,null,null,"x 50%","=",{"$f":"G24*0.5","v":0}]
[null,null,null,null,null,null,null,"x 50%","=",{"$f":"G25*0.5","v":0}]
[null,null,null,null,null,null,null,"x 50%","=",0]
[null,null,null,null,null,null,null,"x 50%","=",0]
[]
[null,"Summe der investiven Mehrausgaben für die Technische Gebäudeausrüstung",null,null,null,"B)",{"$f":"SUM(G24:G27)","v":0},"x 50%","=",{"$f":"SUM(J24:J27)","v":0}]
[]
["C)","Sonstige Maßnahmen"]
[null,"Nr. 4 c) des Merkblatts zur Förderung der energetisch optimierten Modernisierung"]
[null,null,null,null,"Anzahl",null,"Tatsächliche Höhe der investiven Ausgaben","max. Förder-\nsatz",null,"mögliche Förderung"]
[null,"Maßnahme",null,null,"[Stk.]",null,"[EUR]",null,null,"[EUR]"]
[null,"Luftdichtheitstest",null,null,null,null,null,"x 50%","=",{"$f":"G35*0.5","v":0}]
[null,"Messeinrichtungen (Wärmemengenzähler)",null,null,null,null,null,"x 50%","=",{"$f":"G36*0.5","v":0}]
[null,"Planungsmehrausgaben",null,null,null,null,null,"x 50%","=",0]
[]
[null,"Summe der Mehrausgaben für Sonstige Maßnahmen",null,null,null,"C)",{"$f":"IF((SUM(G35:G37))<=(G17+G29)*0.1,(SUM(G35:G37)),(G17+G29)*0.1)","v":0},"x 50%","=",{"$f":"IF((SUM(G35:G37))<=((G17+G29)*0.1),(G39*0.5),(G17+G29)*0.1*0.5)","v":0}]
[null,null,null,null,null,null,"Die Mehrausgaben für Sonstige Maßnahmen sind auf 10% der an-"]
[null,null,null,null,null,null,"erkannten zuwendungsfähigen Investitionsmehrausgaben limitiert."]
[]
[]
[null,"Summe der zuwendungsfähigen Mehrausgaben und mögliche Förderung für Bauliche, Technische und Sonstige Maßnahmen ",null,null,null,"A)+B)+C)",{"$f":"G17+G29+G39","v":0},"x 50%","=",{"$f":"J17+J29+J39","v":0}]